fUST/lending_fUST_20250531
["ID","MTS","AMOUNT","RATE_DAILY","PERIOD"]
[363244797,1748644236273,-430.0,0.00016438,2]
[363244798,1748644236283,-2116.33,0.00016438,2]
[363244799,1748644236294,-454.27,0.00016438,2]
[363244800,1748644236303,-430.0,0.00016438,2]
[363244801,1748644236313,-389.82535415,0.00016438,2]
[363244802,1748644236323,-430.0,0.00016438,2]
[363244803,1748644236332,-290.00915493,0.00016438,2]
[363244804,1748644236342,-430.0,0.00016438,2]
[363244805,1748644236351,-282.7,0.00016438,2]
[363244806,1748644236360,-430.0,0.00016438,2]
[363244807,1748644236370,-430.0,0.00016438,2]
[363244808,1748644236380,-430.0,0.00016438,2]
[363244809,1748644236390,-537.74,0.00016438,2]
[363244810,1748644236400,-430.0,0.00016438,2]
[363244811,1748644236409,-430.0,0.00016438,2]
[363244812,1748644236422,-527.65,0.00016438,2]
[363244813,1748644236432,-430.0,0.00016438,2]
[363244814,1748644236442,-864.74,0.00016438,2]
[363244815,1748644236454,-467.57,0.00016438,2]
[363244816,1748644236464,-430.0,0.00016438,2]
[363244817,1748644236474,-430.0,0.00016438,2]
[363244818,1748644236485,-430.0,0.00016438,2]
[363244819,1748644236495,-430.0,0.00016438,2]
[363244820,1748644236505,-2000.48,0.00016438,2]
[363244821,1748644236519,-2236.22,0.00016438,2]
[363244822,1748644236529,-430.0,0.00016438,2]
[363244823,1748644236539,-403.42898893,0.00016438,2]
[363244824,1748644236548,-430.0,0.00016438,2]
[363244825,1748644236558,-500.0,0.00016438,2]
[363244826,1748644236568,-500.0,0.00016438,2]
[363244827,1748644236578,-450.11,0.00016438,2]
[363244828,1748644236589,-430.0,0.00016438,2]
[363244829,1748644236598,-500.0,0.00016438,2]
[363244830,1748644236607,-500.0,0.00016438,2]
[363244831,1748644236617,-500.0,0.00016438,2]
[363244832,1748644236626,-443.54,0.00016438,2]
[363244833,1748644236636,-224.94,0.00016438,2]
[363244834,1748644236645,-430.0,0.00016438,2]
[363244835,1748644236655,-1769.54,0.00016438,2]
[363244836,1748644236664,-430.0,0.00016438,2]
[363244837,1748644236674,-430.0,0.00016438,2]
[363244838,1748644236683,-430.0,0.00016438,2]
[363244839,1748644236693,-430.0,0.00016438,2]
[363244840,1748644236868,-430.0,0.00016438,2]
[363244841,1748644236879,-638.96,0.00016438,2]
[363244842,1748644236888,-430.0,0.00016438,2]
[363244843,1748644236897,-570.51,0.00016438,2]
[363244844,1748644236906,-430.0,0.00016438,2]
[363244845,1748644236917,-421.64948953,0.00016438,2]
[363244846,1748644236928,-236.63613068,0.00016438,2]
[363244847,1748644236938,-2646.18,0.00016438,2]
[363244848,1748644236947,-430.0,0.00016438,2]
[363244849,1748644236957,-430.0,0.00016438,2]
[363244850,1748644236966,-430.0,0.00016438,2]
[363244851,1748644236975,-430.0,0.00016438,2]
[363244852,1748644236984,-692.05,0.00016438,2]
[363244853,1748644236993,-430.0,0.00016438,2]
[363244854,1748644237003,-430.0,0.00016438,2]
[363244855,1748644237011,-430.0,0.00016438,2]
[363244856,1748644237020,-430.0,0.00016438,2]
[363244857,1748644237030,-430.0,0.00016438,2]
[363244858,1748644237039,-430.0,0.00016438,2]
[363244859,1748644237048,-430.0,0.00016438,2]
[363244860,1748644237057,-430.0,0.00016438,2]
[363244861,1748644237067,-430.0,0.00016438,2]
[363244862,1748644237078,-430.0,0.00016438,2]
[363244863,1748644237096,-430.0,0.00016438,2]
[363244864,1748644237106,-430.0,0.00016438,2]
[363244865,1748644237116,-430.0,0.00016438,2]
[363244866,1748644237125,-433.40735959,0.00016438,2]
[363244867,1748644237134,-1249.32,0.00016438,2]
[363244868,1748644237143,-430.0,0.00016438,2]
[363244869,1748644237153,-430.0,0.00016438,2]
[363244870,1748644237162,-430.0,0.00016438,2]
[363244871,1748644237171,-430.0,0.00016438,2]
[363244872,1748644237182,-430.0,0.00016438,2]
[363244873,1748644237191,-430.0,0.00016438,2]
[363244874,1748644237199,-430.0,0.00016438,2]
[363244875,1748644237209,-1155.87,0.00016438,2]
[363244876,1748644237218,-1163.68,0.00016438,2]
[363244877,1748644237227,-1306.62,0.00016438,2]
[363244878,1748644237237,-430.0,0.00016438,2]
[363244879,1748644237247,-430.0,0.00016438,2]
[363244880,1748644237256,-430.0,0.00016438,2]
[363244881,1748644237266,-430.0,0.00016438,2]
[363244882,1748644237275,-430.0,0.00016438,2]
[363244883,1748644237284,-430.0,0.00016438,2]
[363244884,1748644237294,-430.0,0.00016438,2]
[363244885,1748644237304,-430.0,0.00016438,2]
[363244886,1748644237314,-430.0,0.00016438,2]
[363244887,1748644237324,-430.0,0.00016438,2]
[363244888,1748644237333,-545.34,0.00016438,2]
[363244889,1748644237343,-430.0,0.00016438,2]
[363244890,1748644237352,-430.0,0.00016438,2]
[363244891,1748644237362,-201.30607031,0.00016438,2]
[363244892,1748644237371,-430.0,0.00016438,2]
[363244893,1748644237381,-430.0,0.00016438,2]
[363244894,1748644237390,-430.0,0.00016438,2]
[363244895,1748644237399,-335.1581449,0.00016438,2]
[363244896,1748644237409,-430.0,0.00016438,2]
[363244897,1748644237419,-430.0,0.00016438,2]
[363244898,1748644237429,-551.53094461,0.00016438,2]
[363244899,1748644237438,-430.0,0.00016438,2]
[363244900,1748644237447,-430.0,0.00016438,2]
[363244901,1748644237456,-430.0,0.00016438,2]
[363244902,1748644237466,-430.0,0.00016438,2]
[363244903,1748644237475,-582.09714577,0.00016503,2]
[363244904,1748644237484,-500.0,0.00016629,2]
[363244905,1748644237494,-500.0,0.00016656,2]
[363244906,1748644237503,-500.0,0.00016662,2]
[363244907,1748644237516,-500.0,0.00016662,2]
[363244908,1748644237526,-500.0,0.00016662,2]
[363244909,1748644237535,-500.0,0.00016663,2]
[363244910,1748644237545,-500.0,0.00016663,2]
[363244911,1748644237555,-500.0,0.00016663,2]
[363244912,1748644237564,-500.0,0.00016684,2]
[363244913,1748644237574,-500.0,0.00016694,2]
[363244914,1748644237583,-151.0,0.000167,2]
[363244915,1748644237594,-500.0,0.00016711,2]
[363244916,1748644237603,-430.0,0.00016712,2]
[363244917,1748644237612,-430.0,0.00016712,2]
[363244918,1748644237623,-430.0,0.00016712,2]
[363244919,1748644237632,-430.0,0.00016712,2]
[363244920,1748644237642,-315.23334353,0.00016712,2]
[363244921,1748644237652,-430.0,0.00016712,2]
[363244922,1748644237662,-430.0,0.00016712,2]
[363244923,1748644237672,-430.0,0.00016712,2]
[363244924,1748644237682,-430.0,0.00016712,2]
[363244925,1748644237691,-430.0,0.00016712,2]
[363244926,1748644237700,-430.0,0.00016712,2]
[363244927,1748644237710,-430.0,0.00016712,2]
[363244928,1748644237719,-1019.46,0.00016712,2]
[363244929,1748644237728,-430.0,0.00016712,2]
[363244930,1748644237737,-163.15064607,0.00016712,2]
[363244931,1748644237747,-430.0,0.00016712,2]
[363244932,1748644237757,-1380.24,0.00016712,2]
[363244933,1748644237767,-532.04,0.00016712,2]
[363244934,1748644237776,-430.0,0.00016712,2]
[363244935,1748644237786,-1050.1,0.00016712,2]
[363244936,1748644237796,-430.0,0.00016712,2]
[363244937,1748644237806,-430.0,0.00016712,2]
[363244938,1748644237816,-430.0,0.00016712,2]
[363244939,1748644237827,-1471.41,0.00016712,2]
[363244940,1748644237837,-633.35,0.00016712,2]
[363244941,1748644237847,-430.0,0.00016712,2]
[363244942,1748644237857,-430.0,0.00016712,2]
[363244943,1748644237867,-1515.85,0.00016712,2]
[363244944,1748644237877,-435.23,0.00016712,2]
[363244945,1748644237887,-578.28,0.00016712,2]
[363244946,1748644237897,-430.0,0.00016712,2]
[363244947,1748644237906,-430.0,0.00016712,2]
[363244948,1748644237918,-430.0,0.00016712,2]
[363244949,1748644237927,-2116.33,0.00016712,2]
[363244950,1748644237937,-454.27,0.00016712,2]
[363244952,1748644237947,-252.90764583,0.00016712,2]
[363244954,1748644237957,-430.0,0.00016712,2]
[363244955,1748644237967,-438.02812103,0.00016712,2]
[363244956,1748644237976,-430.0,0.00016712,2]
[363244957,1748644237986,-430.0,0.00016712,2]
[363244958,1748644237996,-537.74,0.00016712,2]
[363244959,1748644238007,-430.0,0.00016712,2]
[363244960,1748644238016,-527.65,0.00016712,2]
[363244961,1748644238026,-864.74,0.00016712,2]
[363244962,1748644238036,-467.57,0.00016712,2]
[363244964,1748644238046,-315.82201057,0.00016712,2]
[363244966,1748644238056,-2000.48,0.00016712,2]
[363244967,1748644238065,-2236.22,0.00016712,2]
[363244968,1748644238074,-450.11,0.00016712,2]
[363244969,1748644238084,-1769.54,0.00016712,2]
[363244970,1748644238094,-430.0,0.00016712,2]
[363244971,1748644238103,-638.96,0.00016712,2]
[363244972,1748644238113,-570.51,0.00016712,2]
[363244973,1748644238122,-2646.18,0.00016712,2]
[363244974,1748644238132,-430.0,0.00016712,2]
[363244975,1748644238141,-692.05,0.00016712,2]
[363244976,1748644238151,-430.0,0.00016712,2]
[363244978,1748644238161,-430.0,0.00016712,2]
[363244980,1748644238173,-1249.32,0.00016712,2]
[363244982,1748644238182,-430.0,0.00016712,2]
[363244983,1748644238192,-430.0,0.00016712,2]
[363244984,1748644238201,-1155.87,0.00016712,2]
[363244985,1748644238211,-1163.68,0.00016712,2]
[363244986,1748644238220,-1306.62,0.00016712,2]
[363244987,1748644238230,-430.0,0.00016712,2]
[363244988,1748644238240,-430.0,0.00016712,2]
[363244989,1748644238249,-430.0,0.00016712,2]
[363244990,1748644238259,-430.0,0.00016712,2]
[363244991,1748644238268,-430.0,0.00016712,2]
[363244992,1748644238281,-430.0,0.00016712,2]
[363244993,1748644238291,-430.0,0.00016712,2]
[363244994,1748644238300,-500.0,0.00016719,2]
[363244995,1748644238309,-518.43483232,0.00016719,2]
[363244996,1748644238319,-500.0,0.00016721,2]
[363244997,1748644238329,-500.0,0.00016721,2]
[363244998,1748644238340,-627.89782062,0.00016721,2]
[363245000,1748644238349,-500.0,0.00016721,2]
[363245001,1748644238360,-500.0,0.00016721,2]
[363245002,1748644238369,-500.0,0.00016721,2]
[363245003,1748644238379,-500.0,0.00016733,2]
[363245004,1748644238389,-265.26159556,0.00016733,2]
[363245005,1748644238399,-500.0,0.00016733,2]
[363245006,1748644238409,-500.0,0.00016739,2]
[363245007,1748644238422,-500.0,0.00016746,2]
[363245008,1748644238433,-500.0,0.0001675,2]
[363245009,1748644238443,-500.0,0.0001675,2]
[363245010,1748644238453,-615.67473108,0.0001675,2]
[363245011,1748644238463,-500.0,0.0001675,2]
[363245012,1748644238474,-500.0,0.00016766,2]
[363245013,1748644238484,-476.9834559,0.00016792,2]
[363245014,1748644238494,-500.0,0.00016793,2]
[363245015,1748644238504,-638.20879264,0.000168,2]
[363245016,1748644238518,-500.0,0.00016821,2]
[363245017,1748644238528,-401.19998337,0.00016848,2]
[363245018,1748644238538,-151.0,0.000169,2]
[363245019,1748644238548,-2482.93651239,0.00016955,2]
[363245020,1748644238559,-430.0,0.00016986,2]
[363245021,1748644238569,-430.0,0.00016986,2]
[363245022,1748644238580,-430.0,0.00016986,2]
[363245023,1748644238591,-1019.46,0.00016986,2]
[363245024,1748644238601,-430.0,0.00016986,2]
[363245025,1748644238611,-1380.24,0.00016986,2]
[363245026,1748644238621,-430.0,0.00016986,2]
[363245027,1748644238631,-1050.1,0.00016986,2]
[363245028,1748644238641,-430.0,0.00016986,2]
[363245029,1748644238651,-430.0,0.00016986,2]
[363245030,1748644238661,-1471.41,0.00016986,2]
[363245031,1748644238672,-633.35,0.00016986,2]
[363245032,1748644238681,-1515.85,0.00016986,2]
[363245033,1748644238691,-435.23,0.00016986,2]
[363245034,1748644238908,-578.28,0.00016986,2]
[363245035,1748644238921,-452.37,0.00016986,2]
[363245036,1748644238931,-430.0,0.00016986,2]
[363245037,1748644238941,-430.0,0.00016986,2]
[363245038,1748644238951,-2116.33,0.00016986,2]
[363245039,1748644238960,-454.27,0.00016986,2]
[363245040,1748644238970,-372.40603938,0.00016986,2]
[363245041,1748644238979,-430.0,0.00016986,2]
[363245042,1748644238989,-430.0,0.00016986,2]
[363245043,1748644238999,-537.74,0.00016986,2]
[363245044,1748644239008,-430.0,0.00016986,2]
[363245045,1748644239018,-527.65,0.00016986,2]
[363245046,1748644239027,-864.74,0.00016986,2]
[363245047,1748644239036,-467.57,0.00016986,2]
[363245048,1748644239046,-2000.48,0.00016986,2]
[363245049,1748644239056,-2236.22,0.00016986,2]
[363245050,1748644239064,-450.11,0.00016986,2]
[363245051,1748644239073,-1769.54,0.00016986,2]
[363245052,1748644239082,-430.0,0.00016986,2]
[363245053,1748644239091,-638.96,0.00016986,2]
[363245054,1748644239100,-570.51,0.00016986,2]
[363245055,1748644239109,-2646.18,0.00016986,2]
[363245056,1748644239118,-430.0,0.00016986,2]
[363245057,1748644239127,-692.05,0.00016986,2]
[363245058,1748644239136,-430.0,0.00016986,2]
[363245059,1748644239145,-1249.32,0.00016986,2]
[363245060,1748644239154,-430.0,0.00016986,2]
[363245061,1748644239163,-430.0,0.00016986,2]
[363245062,1748644239176,-1155.87,0.00016986,2]
[363245063,1748644239184,-1163.68,0.00016986,2]
[363245064,1748644239194,-1306.62,0.00016986,2]
[363245065,1748644239202,-430.0,0.00016986,2]
[363245066,1748644239211,-430.0,0.00016986,2]
[363245067,1748644239220,-154.74,0.00016986,2]
[363245068,1748644239229,-430.0,0.00016986,2]
[363245069,1748644239238,-430.0,0.00016986,2]
[363245070,1748644239246,-430.0,0.00016986,2]
[363245071,1748644239255,-8457.18071398,0.000171,2]
[363245072,1748644239264,-8457.18071398,0.000171,2]
[363245073,1748644239273,-8457.18071398,0.000171,2]
[363245074,1748644239282,-8457.18071398,0.000171,2]
[363245075,1748644239291,-6259.53324856,0.00017141,2]
[363245076,1748644239902,-500.0,0.00014541,2]
[363245077,1748644239912,-500.0,0.00014541,2]
[363245078,1748644239926,-500.0,0.00014541,2]
[363245079,1748644239935,-320.03813283,0.00014541,2]
[363245080,1748644239947,-179.96186717,0.00014541,2]
[363245081,1748644239956,-500.0,0.00014541,2]
[363245082,1748644239965,-500.0,0.00014541,2]
[363245083,1748644239975,-500.0,0.00014541,2]
[363245084,1748644239984,-500.0,0.00014541,2]
[363245085,1748644239994,-500.0,0.00014541,2]
[363245086,1748644240003,-500.0,0.00014541,2]
[363245087,1748644240012,-500.0,0.00014541,2]
[363245088,1748644240021,-500.0,0.00014541,2]
[363245089,1748644240031,-500.0,0.00014541,2]
[363245090,1748644240041,-183.22731964,0.00016438,2]
[363245091,1748644240050,-430.0,0.00016438,2]
[363245092,1748644240059,-430.0,0.00016438,2]
[363245093,1748644240068,-430.0,0.00016438,2]
[363245094,1748644240078,-224.97421902,0.00016712,2]
[363245095,1748644240088,-2197.64746542,0.00017141,2]
[363245096,1748644240097,-207.4,0.00017156,2]
[363245097,1748644240107,-151.0,0.00017156,2]
[363245098,1748644240116,-300.0,0.00017156,2]
[363245100,1748644240125,-300.0,0.00017156,2]
[363245101,1748644240135,-112.49332047,0.00017156,2]
[363245102,1748644240148,-187.50667953,0.00017156,2]
[363245103,1748644240157,-300.0,0.00017156,2]
[363245104,1748644240169,-300.0,0.00017156,2]
[363245105,1748644240179,-5000.0,0.00017156,2]
[363245106,1748644240189,-300.0,0.00017156,2]
[363245107,1748644240198,-300.0,0.00017156,2]
[363245109,1748644240208,-300.0,0.00017156,2]
[363245110,1748644240348,-300.0,0.00017156,2]
[363245111,1748644240358,-300.0,0.00017156,2]
[363245112,1748644240368,-300.0,0.00017156,2]
[363245113,1748644240378,-300.0,0.00017156,2]
[363245114,1748644240387,-300.0,0.00017156,2]
[363245115,1748644240397,-300.0,0.00017156,2]
[363245116,1748644240407,-300.0,0.00017156,2]
[363245117,1748644240418,-160.0,0.00017185,2]
[363245118,1748644240427,-423.39538199,0.00017185,2]
[363245119,1748644240437,-229.30959854,0.00017185,2]
[363245120,1748644240446,-36.00775726,0.00017185,2]
[363245121,1748644240459,-123.99224274,0.00017185,2]
[363245122,1748644240468,-6736.66649768,0.00017185,2]
[363245123,1748644240480,-938.02957711,0.00017185,2]
[363245124,1748644240501,-609.058,0.00017185,2]
[363245125,1748644240516,-350.836,0.00017185,2]
[363245126,1748644240613,-4028.5210804,0.00017185,2]
[363245127,1748644240623,-160.0,0.00017185,2]
[363245128,1748644240633,-160.0,0.00017185,2]
[363245129,1748644240642,-160.0,0.00017185,2]
[363245130,1748644240652,-212.7380601,0.00017185,2]
[363245131,1748644240661,-160.0,0.00017185,2]
[363245132,1748644240672,-160.0,0.00017185,2]
[363245133,1748644240682,-842.5625,0.00017185,2]
[363245134,1748644240691,-160.0,0.00017185,2]
[363245135,1748644240700,-151.0,0.000172,2]
[363245136,1748644240710,-1000.0,0.0001721,2]
[363245137,1748644240719,-1000.0,0.0001721,2]
[363245138,1748644240729,-1000.0,0.0001721,2]
[363245139,1748644240738,-229.11349722,0.0001721,2]
[363245140,1748644240749,-1000.0,0.0001721,2]
[363245141,1748644240759,-1000.0,0.0001721,2]
[363245142,1748644240768,-1000.0,0.00017242,2]
[363245144,1748644240778,-3000.0,0.00017246,2]
[363245145,1748644240787,-430.0,0.0001726,2]
[363245146,1748644240796,-430.0,0.0001726,2]
[363245147,1748644240806,-430.0,0.0001726,2]
[363245148,1748644240814,-430.0,0.0001726,2]
[363245149,1748644240824,-1050.1,0.0001726,2]
[363245150,1748644240833,-430.0,0.0001726,2]
[363245151,1748644240843,-430.0,0.0001726,2]
[363245152,1748644240852,-1471.41,0.0001726,2]
[363245153,1748644240862,-633.35,0.0001726,2]
[363245155,1748644240871,-1515.85,0.0001726,2]
[363245157,1748644240880,-435.23,0.0001726,2]
[363245159,1748644240889,-578.28,0.0001726,2]
[363245161,1748644240899,-430.0,0.0001726,2]
[363245163,1748644240908,-430.0,0.0001726,2]
[363245165,1748644240917,-2116.33,0.0001726,2]
[363245167,1748644240927,-454.27,0.0001726,2]
[363245169,1748644240936,-430.0,0.0001726,2]
[363245171,1748644240946,-430.0,0.0001726,2]
[363245173,1748644240955,-537.74,0.0001726,2]
[363245175,1748644240964,-430.0,0.0001726,2]
[363245177,1748644240973,-527.65,0.0001726,2]
[363245179,1748644240982,-864.74,0.0001726,2]
[363245181,1748644240992,-467.57,0.0001726,2]
[363245182,1748644241000,-2000.48,0.0001726,2]
[363245185,1748644241010,-2236.22,0.0001726,2]
[363245186,1748644241019,-450.11,0.0001726,2]
[363245189,1748644241028,-1769.54,0.0001726,2]
[363245191,1748644241038,-430.0,0.0001726,2]
[363245193,1748644241047,-638.96,0.0001726,2]
[363245195,1748644241057,-570.51,0.0001726,2]
[363245197,1748644241066,-2646.18,0.0001726,2]
[363245199,1748644241075,-692.05,0.0001726,2]
[363245200,1748644241084,-1249.32,0.0001726,2]
[363245202,1748644241093,-300.19594758,0.0001726,2]
[363245204,1748644241103,-430.0,0.0001726,2]
[363245206,1748644241112,-1155.87,0.0001726,2]
[363245208,1748644241121,-1163.68,0.0001726,2]
[363245210,1748644241131,-1306.62,0.0001726,2]
[363245212,1748644241140,-430.0,0.0001726,2]
[363245214,1748644241150,-430.0,0.0001726,2]
[363245217,1748644241159,-352.08705978,0.0001726,2]
[363245218,1748644241170,-430.0,0.0001726,2]
[363245220,1748644241179,-430.0,0.0001726,2]
[363245222,1748644241188,-1000.0,0.00017267,2]
[363245224,1748644241198,-1000.0,0.00017269,2]
[363245226,1748644241207,-500.0,0.00017269,2]
[363245229,1748644241217,-1000.0,0.00017269,2]
[363245230,1748644241227,-1000.0,0.00017269,2]
[363245232,1748644241238,-741.26924694,0.00017281,2]
[363245234,1748644241247,-1064.54710437,0.00017281,2]
[363245236,1748644241256,-304.41326638,0.00017298,2]
[363245238,1748644241267,-176.414694,0.00017374,2]
[363245240,1748644241276,-763.6215936,0.00017374,2]
[363245242,1748644241285,-356.4980681,0.00017375,2]
[363245244,1748644241295,-1143.9483991,0.00017375,2]
[363245246,1748644241304,-158.4280407,0.00017375,2]
[363245248,1748644241313,-1142.8768774,0.00017375,2]
[363245250,1748644241323,-158.4280407,0.00017375,2]
[363245252,1748644241333,-316.7345368,0.00017375,2]
[363245255,1748644241343,-272.74728175,0.00017399,2]
[363245257,1748644241353,-151.0,0.000174,2]
[363245259,1748644241363,-587.0,0.00017432,2]
[363245261,1748644241372,-8457.18071398,0.00017452,2]
[363245263,1748644241381,-430.0,0.00017534,2]
[363245265,1748644241390,-513.14677822,0.00017534,2]
[363245267,1748644241400,-430.0,0.00017534,2]
[363245269,1748644241409,-430.0,0.00017534,2]
[363245271,1748644241419,-1050.1,0.00017534,2]
[363245273,1748644241429,-430.0,0.00017534,2]
[363245275,1748644241438,-430.0,0.00017534,2]
[363245277,1748644241447,-1471.41,0.00017534,2]
[363245279,1748644241457,-633.35,0.00017534,2]
[363245281,1748644241467,-1515.85,0.00017534,2]
[363245283,1748644241476,-435.23,0.00017534,2]
[363245284,1748644241485,-578.28,0.00017534,2]
[363245286,1748644241494,-430.0,0.00017534,2]
[363245288,1748644241504,-454.27,0.00017534,2]
[363245291,1748644241517,-2116.33,0.00017534,2]
[363245293,1748644241527,-430.0,0.00017534,2]
[363245294,1748644241536,-430.0,0.00017534,2]
[363245296,1748644241546,-537.74,0.00017534,2]
[363245298,1748644241556,-430.0,0.00017534,2]
[363245301,1748644241566,-527.65,0.00017534,2]
[363245303,1748644241576,-864.74,0.00017534,2]
[363245305,1748644241585,-467.57,0.00017534,2]
[363245306,1748644241595,-2000.48,0.00017534,2]
[363245308,1748644241605,-2236.22,0.00017534,2]
[363245310,1748644241615,-450.11,0.00017534,2]
[363245313,1748644241625,-1769.54,0.00017534,2]
[363245315,1748644241634,-430.0,0.00017534,2]
[363245316,1748644241643,-638.96,0.00017534,2]
[363245319,1748644241653,-570.51,0.00017534,2]
[363245320,1748644241662,-2646.18,0.00017534,2]
[363245323,1748644241674,-692.05,0.00017534,2]
[363245324,1748644241683,-1249.32,0.00017534,2]
[363245327,1748644241693,-430.0,0.00017534,2]
[363245329,1748644241703,-1155.87,0.00017534,2]
[363245331,1748644241712,-1163.68,0.00017534,2]
[363245332,1748644241722,-1306.62,0.00017534,2]
[363245334,1748644241731,-430.0,0.00017534,2]
[363245336,1748644241740,-282.52692179,0.00017534,2]
[363245338,1748644241750,-430.0,0.00017534,2]
[363245340,1748644241759,-430.0,0.00017534,2]
[363245343,1748644241768,-2482.93651239,0.00017571,2]
[363245345,1748644241778,-151.0,0.000176,2]
[363245347,1748644241787,-205.87054641,0.000176,2]
[363245348,1748644241796,-500.0,0.00017628,2]
[363245351,1748644241806,-207.05840928,0.00017697,2]
[363245353,1748644241815,-5000.0,0.00017704,2]
[363245354,1748644241824,-1500.0,0.00017758,2]
[363245356,1748644241833,-1500.0,0.00017758,2]
[363245358,1748644241842,-550.77853482,0.00017758,2]
[363245360,1748644241851,-1000.0,0.00017758,2]
[363245362,1748644241860,-1000.0,0.00017758,2]
[363245364,1748644241870,-8457.18071398,0.00017762,2]
[363245366,1748644241879,-530.66870168,0.0001779,2]
[363245368,1748644241888,-378.41083,0.00017808,2]
[363245370,1748644241897,-378.41083,0.00017808,2]
[363245372,1748644241906,-430.0,0.00017808,2]
[363245374,1748644241915,-430.0,0.00017808,2]
[363245376,1748644241925,-430.0,0.00017808,2]
[363245377,1748644241934,-1050.1,0.00017808,2]
[363245378,1748644241944,-430.0,0.00017808,2]
[363245379,1748644241953,-430.0,0.00017808,2]
[363245380,1748644241962,-1471.41,0.00017808,2]
[363245381,1748644241971,-633.35,0.00017808,2]
[363245382,1748644241981,-1515.85,0.00017808,2]
[363245383,1748644241992,-435.23,0.00017808,2]
[363245384,1748644242001,-578.28,0.00017808,2]
[363245385,1748644242010,-430.0,0.00017808,2]
[363245386,1748644242021,-454.27,0.00017808,2]
[363245387,1748644242031,-2116.33,0.00017808,2]
[363245388,1748644242040,-430.0,0.00017808,2]
[363245389,1748644242049,-430.0,0.00017808,2]
[363245390,1748644242058,-537.74,0.00017808,2]
[363245391,1748644242068,-430.0,0.00017808,2]
[363245392,1748644242077,-527.65,0.00017808,2]
[363245393,1748644242087,-864.74,0.00017808,2]
[363245394,1748644242096,-467.57,0.00017808,2]
[363245395,1748644242105,-2000.48,0.00017808,2]
[363245396,1748644242115,-2236.22,0.00017808,2]
[363245397,1748644242124,-450.11,0.00017808,2]
[363245398,1748644242133,-1769.54,0.00017808,2]
[363245399,1748644242142,-430.0,0.00017808,2]
[363245400,1748644242151,-638.96,0.00017808,2]
[363245401,1748644242161,-570.51,0.00017808,2]
[363245402,1748644242171,-2646.18,0.00017808,2]
[363245404,1748644242181,-692.05,0.00017808,2]
[363245406,1748644242191,-1249.32,0.00017808,2]
[363245408,1748644242200,-430.0,0.00017808,2]
[363245410,1748644242210,-1155.87,0.00017808,2]
[363245412,1748644242219,-1163.68,0.00017808,2]
[363245414,1748644242228,-1306.62,0.00017808,2]
[363245416,1748644242237,-430.0,0.00017808,2]
[363245417,1748644242246,-430.0,0.00017808,2]
[363245419,1748644242255,-430.0,0.00017808,2]
[363245422,1748644242265,-500.0,0.00017815,2]
[363245423,1748644242274,-1000.0,0.00017817,2]
[363245425,1748644242283,-500.0,0.00017817,2]
[363245427,1748644242293,-241.32313444,0.00017817,2]
[363245429,1748644242302,-998.63634442,0.0001786,5]
[363245431,1748644242312,-151.0,0.000179,2]
[363245433,1748644242322,-587.0,0.00017914,2]